Cogmind - Beta 16 @@@ ROGUE MODE // 2026.01.24 @ 23:14:34 Player: vorsii Result: Destroyed by as-62734 with Assembled Blade Performance ------------- Evolutions (0) 0 Regions Visited (2) 400 Robots Destroyed (12) 60 Value Destroyed (262) 262 Prototype IDs (0) 0 Alien Tech Used (0) 0 Bonus (0) 0 TOTAL SCORE: 722 Bonus ------- None Cogmind --------- Core Integrity 0/250 Matter 240/300 Energy 100/100 System Corruption 11% Temperature Cool (0) Movement Core (1350) Ox26 Location -10/Mines Parts ------- > --- POWER (1) -------- (None) > --- PROPULSION (2) --- (None) > --- UTILITY (2) ------ Huge Storage Unit > --- WEAPON (2) ------- Light Assault Rifle > --- INVENTORY (25) --- Light Ion Engine Light Ion Engine Compact Wheel Compact Wheel Large Storage Unit Power Shielding EM Pulse Gun Assault Rifle Light Assault Rifle Peak State ------------ > --- POWER ------------ Ion Engine > --- PROPULSION ------- Light Treads Light Treads > --- UTILITY ---------- Huge Storage Unit Terrain Scanner > --- WEAPON ----------- EM Pulse Gun Assault Rifle > --- INVENTORY -------- Light Ion Engine Light Ion Engine Compact Wheel Compact Wheel Large Storage Unit Power Shielding EM Pulse Gun Assault Rifle Mining Laser Mining Claw [Rating: 8] Favorites ----------- Power Ion Engine Engine Ion Engine Propulsion Light Treads Treads Light Treads Utility Terrain Scanner Device Terrain Scanner Storage Huge Storage Unit Weapon Assault Rifle Energy Gun EM Pulse Gun Ballistic Gun Assault Rifle Special Weapon Mining Laser Slashing Weapon Mining Claw Build | -11 -10 -10 ------- Run | Yrd Mat Min Slots Evolved . | . . . Power . | . . . Propulsion . | . . . Utility . | . . . Weapon . | . . . Parts Attached 14 | 4 5 5 Power 2 | 1 . 1 Engine 2 | 1 . 1 Core . | . . . Reactor . | . . . Propulsion 2 | . 2 . Treads 2 | . 2 . Leg . | . . . Wheel . | . . . Hover . | . . . Flight . | . . . Utility 4 | 1 3 . Device 1 | . 1 . Storage 3 | 1 2 . Processor . | . . . Hackware . | . . . Protection . | . . . Artifact . | . . . Weapon 6 | 2 . 4 Energy Gun 1 | 1 . . Energy Cannon . | . . . Ballistic Gun 3 | 1 . 2 Ballistic Cannon . | . . . Launcher . | . . . Special Weapon 1 | . . 1 Impact Weapon . | . . . Slashing Weapon 1 | . . 1 Piercing Weapon . | . . . Special Melee Weapon . | . . . Unidentified Prototypes . | . . . Parts Lost 8 | . . 8 Power 1 | . . 1 Propulsion 2 | . . 2 Utility 1 | . . 1 Weapon 4 | . . 4 Highest Loss Streak 3 | . . 3 To Critical Strikes . | . . . Average Backups 8 | 3 5 12 Power 1 | . 1 2 Propulsion 1 | 1 1 2 Utility 1 | . 1 2 Weapon 3 | 1 2 5 Tool/Special . | . . . Unused Backups 8 | . . 8 Power 2 | . . 2 Propulsion 2 | . . 2 Utility 1 | . . 1 Weapon 3 | . . 3 Tool/Special . | . . . Average Slot Usage (%) 92 | . 92 92 Engine 13 | . 14 12 Treads 24 | . 24 23 Device 11 | . 11 12 Storage 14 | . 14 14 Energy Gun 13 | . 13 12 Ballistic Gun 13 | . 13 14 Peak Build Rating 8 | 4 7 8 Average Rating 6 | 3 6 7 On Entrance 3 | . 4 7 Avg Prop Armor Cover (%) . | . . . Naked Turns . | . . . Heaviest Build 90 | 14 90 90 Greatest Support 40 | 3 40 40 Greatest Overweight (x) 4 | 4 4 4 Average Overweight (x) 1 | 2 1 2 Largest Inventory Capacity 25 | 8 25 25 Average Capacity 22 | 7 20 25 Most Carried 14 | 5 10 14 Average Carried 8 | 3 5 12 Final Capacity 25 | 8 25 25 Final Carried 9 | 4 9 9 Class Distribution -------------------- 100% | Mutant Dominant Class ---------------- Mutant | -10/Materials Mutant | -10/Mines Resources | -11 -10 -10 ----------- Run | Yrd Mat Min Matter Collected 479 | 215 162 102 Remotely . | . . . Salvage Created 497 | . 318 179 Parts 26 | . 21 5 Haulers Intercepted . | . . . Recyclers Shooed . | . . . Parts Field Recycled . | . . . Retrieved Matter . | . . . Parts Self-Destructed . | . . . Prevented . | . . . Parts Restored . | . . . Kills | -11 -10 -10 ------- Run | Yrd Mat Min Combat Hostiles Destroyed 16 | . 5 11 Guns 13 | . 4 9 Cannons 1 | . . 1 AOE 1 | . . 1 Classes Destroyed 6 | . 4 2 Worker 1 | . 1 . Operator 1 | . 1 . Watcher 2 | . 2 . Swarmer 3 | . . 3 Grunt 5 | . 5 . Assembled 8 | . . 8 Best Kill Streak 3 | . 3 3 Combat Bots Only 3 | . 3 3 Max Kills in Single Turn 1 | . 1 1 Gunslinging . | . . . Exploded 1 | . . 1 Melee . | . . . Uniques/NPCs Destroyed . | . . . Combat | -11 -10 -10 -------- Run | Yrd Mat Min Hostile Shots Fired 108 | . 38 70 Missed 28 | . 11 17 Hits 80 | . 27 53 Melee 21 | . . 21 Projectile 59 | . 27 32 Critical Strikes 1 | . 1 . Part Disruptions 1 | . . 1 Damage Taken 1245 | . 317 928 Core 274 | . 33 241 Absorbed by Shields . | . . . Regen/Repaired (Parts) 136 | . 136 . Core Remaining (%) 100 | 100 . . Volleys Fired 82 | . 29 53 Largest 2 | . 2 2 Hottest 120 | . 60 120 Shots Fired 133 | . 58 75 Gun 132 | . 58 74 Cannon . | . . . Launcher . | . . . Special 1 | . . 1 Kinetic 90 | . 29 61 Thermal 1 | . . 1 Explosive . | . . . Electromagnetic 42 | . 29 13 Robot Hit Streak 12 | . 12 6 Robot Miss Streak 5 | . 2 5 Penetration Max . | . . . Secondary Targets 1 | . . 1 Max Gunslinging Chain 1 | . . 1 Shots Hit Robots 80 | . 39 41 Core Hits 36 | . 11 25 Critical Kills . | . . . Critical Parts Destroyed . | . . . Critical Strikes 1 | . 1 . Corrupt 1 | . 1 . Melee Attacks 2 | . . 2 Impact . | . . . Slashing 2 | . . 2 Piercing . | . . . Sneak Attacks . | . . . Combat Hostiles . | . . . Follow-up Attacks . | . . . Damage Inflicted 1055 | . 587 468 Guns 941 | . 543 398 Cannons . | . . . Explosions 90 | . 44 46 Melee . | . . . Ramming . | . . . Kinetic 588 | . 244 344 Thermal 114 | . 44 70 Explosive . | . . . Electromagnetic 353 | . 299 54 Impact . | . . . Slashing . | . . . Piercing . | . . . Highest Corruption 11 | . . 11 Average Corruption 10 | . . 10 Corruption Purged . | . . . Corruption Blocked . | . . . Effects 3 | . . 3 Matter Fused 1 | . . 1 Parts Rejected 2 | . . 2 Overload Shots . | . . . Overflow Damage 14 | . 14 . Projectiles . | . . . Explosions 14 | . 14 . Melee . | . . . Knockbacks . | . . . Impact . | . . . Kinetic . | . . . Secondary . | . . . Self-Inflicted Damage 12 | . . 12 Shots 1 | . . 1 Rammed . | . . . Targets Rammed . | . . . Kicked . | . . . Crushed . | . . . Highest Temperature 60 | . 60 20 Average Temperature 24 | . 26 13 Received Heat Transfer 355 | . 195 160 Siege Activations . | . . . Martial Activations . | . . . Shielding Activations . | . . . Robots Disrupted . | . . . Combat Hostiles . | . . . Robots Corrupted 1 | . 1 . Combat Hostiles 1 | . 1 . Parts Fried . | . . . Impact Corruptions . | . . . Robots Melted . | . . . Combat Hostiles . | . . . Parts Melted . | . . . Heat Transferred 100 | . 50 50 Parts Sabotaged . | . . . Parts Stolen . | . . . Parts Stripped . | . . . Power Chain Reactions 2 | . 1 1 Alert | -11 -10 -10 ------- Run | Yrd Mat Min Maximum Alert Level . | . . . Low Security (%) 100 | 100 100 100 Level 1 . | . . . Level 2 . | . . . Level 3 . | . . . Level 4 . | . . . Level 5 . | . . . High Security . | . . . Max Security . | . . . Peak Influence 73 | . 73 35 Initial . | . . . Average 6 | . 10 2 Influence Increases 265 | . 188 77 Destroy 0b10 Robot/C 160 | . 100 60 Destroy 0b10 Robot/NC 20 | . 20 . Destroy Leader 34 | . 34 . Destroy Structure 6 | . 4 2 Lose Combat Pursuer 45 | . 30 15 Influence Decreases 265 | . 188 77 Time Decay 265 | . 188 77 Squads Dispatched 2 | . 2 . Investigation 2 | . 2 . Extermination . | . . . Reinforcement . | . . . Assault . | . . . Garrison . | . . . Intercept . | . . . Searches Triggered . | . . . Construction Impeded . | . . . Haulers Reinforced . | . . . Active Scanning Responses . | . . . Cargo Convoy Interrupts . | . . . Stealth | -11 -10 -10 --------- Run | Yrd Mat Min Distress Signals 2 | . 2 . Communications Jammed . | . . . Distress Signals . | . . . Times Spotted 37 | . 13 24 Peak Tracking Total 7 | . 4 7 Tactical Retreats 5 | . 2 3 Traps | -11 -10 -10 ------- Run | Yrd Mat Min Traps Triggered 1 | . 1 . Indirectly . | . . . Trap Hack Attempts . | . . . Triggered . | . . . Disarmed . | . . . Reprogrammed . | . . . Reused . | . . . Traps Extracted . | . . . Installed . | . . . Triggered . | . . . Machines | -11 -10 -10 ---------- Run | Yrd Mat Min Machines Disabled . | . . . Max in Single Turn . | . . . Machines Repaired . | . . . Machines Dismantled . | . . . Machines Sabotaged . | . . . Overloaded Fab Kills . | . . . Hacking | -11 -10 -10 --------- Run | Yrd Mat Min Machines Accessed 5 | . 5 . Terminals 2 | . 2 . Fabricators . | . . . Repair Stations 1 | . 1 . Recycling Units 2 | . 2 . Scanalyzers . | . . . Garrison Access . | . . . Total Hacks 16 | . 16 . Successful 10 | . 10 . Failed 6 | . 6 . Catastrophic . | . . . Database Lockouts . | . . . Manual . | . . . Terminals 3 | . 3 . Fabricators . | . . . Repair Stations 7 | . 7 . Recycling Units 6 | . 6 . Scanalyzers . | . . . Garrison Access . | . . . Terminal Hacks 1 | . 1 . Emergency Access Points 1 | . 1 . Fabricator Hacks . | . . . Repair Station Hacks 6 | . 6 . Scan Component 3 | . 3 . Repair 3 | . 3 . Recycling Unit Hacks 3 | . 3 . Process 1 | . 1 . Report Inventory 2 | . 2 . Scanalyzer . | . . . Garrison Access Hacks . | . . . Unauthorized Hacks . | . . . Terminals . | . . . Fabricators . | . . . Repair Stations . | . . . Recycling Units . | . . . Scanalyzers . | . . . Garrison Access . | . . . Data Cores Recovered 1 | . 1 . Used 1 | . 1 . Hacking Detections 4 | . 4 . Full Trace Events 2 | . 2 . Feedback Events . | . . . Feedback Blocked . | . . . Robot Schematics Acquired . | . . . Robots Built . | . . . Authchips . | . . . Time . | . . . Total Robot Build Rating . | . . . Part Schematics Acquired . | . . . Parts Built . | . . . Authchips . | . . . Time . | . . . Total Part Build Rating . | . . . Part Studies Acquired . | . . . Parts Repaired 3 | . 3 . Time 78 | . 78 . Parts Recycled . | . . . Recycled Matter . | . . . Retrieved Matter . | . . . Retrieved Components . | . . . Parts Scanalyzed . | . . . Part Schematics Acquired . | . . . Parts Damaged . | . . . Bothacking | -11 -10 -10 ------------ Run | Yrd Mat Min Used RIF Installer . | . . . Robots Hacked . | . . . Non-combat . | . . . Combat . | . . . Robot Hacks Applied . | . . . Relay Couplers Released . | . . . Fabnet Peak Effective % . | . . . Robots Rewired . | . . . Allies Hacked . | . . . Hacks Repelled . | . . . Allies | -11 -10 -10 -------- Run | Yrd Mat Min Total Allies . | . . . Largest Group . | . . . Highest-Rated Group . | . . . Highest-Rated Ally . | . . . Total Orders . | . . . Ally Attacks . | . . . Total Damage . | . . . Kills . | . . . Allies Corrupted . | . . . Allies Melted . | . . . Intel | -11 -10 -10 ------- Run | Yrd Mat Min Active Infowar (turns) 1836 | . 942 894 Terrain 1836 | . 942 894 Robot Analysis Total . | . . . Derelict Logs Recovered . | . . . Drone Launches . | . . . Drone Recoveries . | . . . Exploration | -11 -10 -10 ------------- Run | Yrd Mat Min Turns Passed 2200 | 71 1150 979 Spaces Moved 577 | 34 370 173 Core 93 | 34 59 . Treads 484 | . 311 173 Legs . | . . . Wheels . | . . . Hover . | . . . Flight . | . . . Fastest Speed 50 | 50 160 320 Average Speed 283 | 180 261 352 Slowest Speed 480 | 250 320 480 Overloaded Moves . | . . . Propulsion Burnouts . | . . . Robots Hopped . | . . . Potential Cave-ins . | . . . Cave-ins Triggered . | . . . Exploration Rate (%) 31 | 4 62 29 Regions Visited 2 Branch Regions 1 Pre-discovered Areas . | . . . Known Exits Taken . | . . . Unknown Exits Taken 2 | 1 1 . Scrap Searched . | . . . Spaces Dug . | . . . Terrain Destroyed 5 | . 3 2 Melee . | . . . Projectile . | . . . AOE 5 | . 3 2 Terrain Rammed . | . . . Walls Destroyed . | . . . Machines Disabled . | . . . Actions | -11 -10 -10 --------- Run | Yrd Mat Min Total 1011 | 45 497 469 Wait 309 | . 78 231 Move 575 | 33 369 173 Hop . | . . . Pick Up 25 | 8 12 5 Fast Attach . | . . . Attach 15 | 4 6 5 Detach . | . . . Swap 2 | . 2 . Drop 1 | . 1 . Fire 82 | . 29 53 Melee 2 | . . 2 Ram . | . . . Kick . | . . . Crush . | . . . Escape Stasis . | . . . Rewire . | . . . Trap . | . . . Miscellaneous . | . . . Route ------- -11/Scrapyard -10/Materials (discovered 3 exits: [*Mat x2] / [*Min]) -10/Mines (discovered 1 exit: [*Sub]) History --------- Turn | Location | Event 16 | -11/Scrapyard | Discovered new exit (range 16) 72 | -11/Scrapyard | Entered Materials 184 | -10/Materials | Discovered new exit (range 3) 304 | -10/Materials | Build established: Mutant 358 | -10/Materials | Discovered new exit (range 7) 380 | -10/Materials | Discovered new exit (range 15) 1093 | -10/Materials | Repaired Assault Rifle 1120 | -10/Materials | Repaired Terrain Scanner 1148 | -10/Materials | Repaired EM Pulse Gun 1222 | -10/Materials | Entered Mines 1261 | -10/Mines | Met a Derelict bent on vengeance 1671 | -10/Mines | Discovered new exit (range 6) 2024 | -10/Mines | Assembled infested the area 2029 | -10/Mines | Assisted by a Guerilla fighting off Assembled 2084 | -10/Mines | Core integrity fell below 50% 2128 | -10/Mines | System corruption reached 10% 2158 | -10/Mines | Lost 3 parts (1u2w) 2197 | -10/Mines | Core integrity fell below 20% 2201 | -10/Mines | Destroyed by as-62734 with Assembled Blade Last Messages --------------- 02086_ Acquired 8 matter. 02116_ Terrain Scanner destroyed. 02116_ System corrupted by crushing effect (+4). 02116_ Destroyed Asb. Hover Unit. 02116_ as-29704 destroyed. 02121_ Mining Laser destroyed. 02121_ System corrupted by crushing effect (+5). 02127_ Assault Rifle destroyed. 02127_ System corrupted by crushing effect (+2). 02134_ System corrupted: Mining Claw rejected. 02145_ as-58549 destroyed. 02153_ as-23497 destroyed. 02153_ Switching to secondary target: as-40431. 02160_ Acquired 40 matter. 02168_ System corrupted: Lgt. Ion Engine rejected. 02178_ as-40431 destroyed. 02183_ System corrupted: Matter fused (-7). 02191_ Lgt. Treads destroyed. 02192_ as-16040 destroyed. 02194_ Lgt. Assault Rifle destroyed. Map ----- +----------------------------------------------------+ | | | ??????????????????????????????????????? | | ??????????????????????????????????????? | | ??????????????????????????????????????? | | ??????????????????????????????????????? | | ??????????????????????????????????????? | | ??????????????????????????????????????? | | ??????????????????????????????????????? | | ??????????????????????????????????????? | | ??????????????????????????????????????? | | ??????????????????????????????????????? | | ??????????????????????????????????????? | | ??????????????????#???????????????????? | | ??????????????????????????????????????? | | ????????????????#?????????????????????? | | ?????????????????????? ???????????????? | | ??????????????????????????????????????# | | ???????????????????????????????????#?#? | | ?????????????????????????###???????#??? | | ????????????????????????? #??????????? | | ??????????????????? ???#?# #??????????? | | ?????????????????????????#%#??????????? | | ????????? ?? ?? ?????????#%##????????## | | ?????????????????????????#a#??????????? | | ??????#?????????#?########a#?????#????# | | ??????????????????# %@ #??????????# | | ??????????????#?#?# #########???#????#? | | ????????#?#???????# #??#????####??????? | | ??????????# ?##??# #??????## ###????? | | ??????????# ???# ##?????# ##????? | | ?????????## ### ###????# ##?#?? | | ?????????# ###?## ##??? | | ?????# ### #??? | | ????? ####### ##?? | | ?????? ?????##???## #?? | | ???????????????????## ## #?? | | ????????????????????# #### ##?? | | ?????????????#??##??# #??####??? | | ????????????????#??## ###???????? | | ????????????#???#### ##?????###?? | | ?????????????#### #??#???????? | | ????????????## % #????#?#???? | | ????????##### ##????#??#??? | | ???????? ###????###???# | | ??????????## ##?#???#???#?? | | ???????????## ##?#????#???#? | | ????????????##### # ##???#??#?#?? | | ???????????????## ## #?##??#??#?? | | ????????????## ?## #####???##?# | | ?????????????# #####?## =#####??? | +----------------------------------------------------+ Best States ------------- Heat Dissipation 25 Energy Generation 10 Energy Capacity 250 Matter Stores 300 Matter Capacity 300 Sight Range 16 Terrain Scan Range 14 Terrain Scan Density 10 Evasion (%) 40 Recoil Reduction 2 Item Schematics ----------------- None Robot Schematics ------------------ None Fabricated ------------ Nothing Repaired ---------- Assault Rifle | 11% | -10/Materials Terrain Scanner | 45% | -10/Materials EM Pulse Gun | 20% | -10/Materials Studied --------- None Alien Tech Used ----------------- None Achievements -------------- None Challenges ------------ None Game ------ Seed GodMasterArticulator Manual? 0 Play Time 00:16:29 Cumulative 15.4 hours Start 2026.01.24 @ 22:59:25 End 2026.01.24 @ 23:14:34 Sessions 1 Manual Loads 0 Difficulty Rogue Special Mode None Game No. 22 Rogue 22 Adventurer 0 Explorer 0 Win Type - Total 0 Types 0/0/0/0/0/0/0/0/0/0 Lore% 16 Gallery% 12 Achievement% 14 Wizard Run 0 Options --------- Layout 0 ASCII 0 Keyboard 0 Movement Mouse Keybinds 0 Fullscreen 1 Font 36/Smallcaps Map View 76x50 Zoom Use 0% Tactical HUD 1 Map Filters NONE Filters NONE Steam 1 RUN: 8731b0cd-6265-4e6a-b837-6035807404ac